[Event "Karnataka State Open-ch 2018"]
[Site "Bengaluru"]
[Date "2018.04.15"]
[Round "4"]
[White "Kishan, Gangolli"]
[Black "Tejes Suresh Kumar"]
[Result "1-0"]
[ECO "D35"]
[WhiteElo "1974"]
[BlackElo "1471"]
[Annotator "NA"]
[PlyCount "97"]
[EventDate "2018.??.??"]
[EventType "swiss"]
[EventCountry "IND"]
[SourceTitle "playchess.com"]
[Source "ChessBase"]
[SourceQuality "1"]
[TimeControl "5400+30"]

1. d4 d5 2. c4 e6 3. Nc3 Nf6 4. cxd5 exd5 5. Bg5 Be7 6. e3 c6 7. Bd3 Nbd7 8. Qc2 O-O 9. Nf3 Re8 10. O-O Nf8 11. Rab1 a5 12. a3 g6 13. b4 Ne4 14. Bxe7 Qxe7 15. Rfc1 Bf5 16. Bxe4 Bxe4 17. Nxe4 Qxe4 18. b5 Rac8 19. Qa4 c5 20. Qxa5 cxd4 21. Nxd4 Ra8 22. Qb4 Ne6 23. h3 Nxd4 24. exd4 Qd3 25. Rb3 Qe2 26. a4 Re4 27. Rf3 Qa2 28. Qd6 Rf8 29. Rc7 Qa1+ 30. Kh2 Qxd4 31. Rxb7 Re6 32. Qf4 Re4 33. Qc7 Qe5+ 34. Qxe5 Rxe5 35. a5 f5 36. a6 d4 37. a7 Ree8 38. Rd7 Ra8 39. b6 g5 40. Ra3 g4 41. b7 g3+ 42. fxg3 f4 43. gxf4 Rad8 44. Rxd8 Rxd8 45. b8=Q Rxb8 46. axb8=Q+ Kg7 47. Ra6 d3 48. Qc7+ Kg8 49. Ra8# 1-0

[Event "Karnataka State Open-ch 2018"]
[Site "Bengaluru"]
[Date "2018.04.15"]
[Round "4"]
[White "Santoshkashyap, Hg"]
[Black "Hariharan, Subramony"]
[Result "1-0"]
[ECO "D43"]
[WhiteElo "1929"]
[BlackElo "1433"]
[Annotator "NA"]
[PlyCount "72"]
[EventDate "2018.??.??"]
[EventType "swiss"]
[EventCountry "IND"]
[SourceTitle "playchess.com"]
[Source "ChessBase"]
[SourceQuality "1"]
[TimeControl "5400+30"]

1. d4 {[%emt 0:00:00]} Nf6 {[%emt 0:07:08]} 2. Nf3 {[%emt 0:00:00]} d5 {[%emt 0:00:28]} 3. c4 {[%emt 0:00:00]} e6 {[%emt 0:00:20]} 4. Nc3 {[%emt 0:00:00]} c6 {[%emt 0:00:08]} 5. Bg5 {[%emt 0:00:09]} Be7 {[%emt 0:00:14]} 6. e3 {[%emt 0:00:08]} h6 {[%emt 0:00:09]} 7. Bh4 {[%emt 0:00:04]} Nbd7 {[%emt 0:00:13]} 8. Qc2 {[%emt 0:00:08]} a6 {[%emt 0:00:08]} 9. Rd1 {[%emt 0:01:49]} b5 {[%emt 0:01:18]} 10. cxd5 {[%emt 0:07:33]} cxd5 {[%emt 0:00:54]} 11. Bd3 {[%emt 0:00:16]} Bb7 {[%emt 0:00:10]} 12. O-O {[%emt 0:00:57]} Rc8 {[%emt 0:00:13]} 13. Qb1 {[%emt 0:09:25]} O-O 14. Rc1 {[%emt 0:00:28]} Re8 {[%emt 0:00:27]} 15. Bg3 {[%emt 0:00:52]} Qb6 {[%emt 0:00:55]} 16. b4 {[%emt 0:00:48]} Bd6 {[%emt 0:00:18]} 17. Bxd6 {[%emt 0:02:34]} Qxd6 {[%emt 0:02:35]} 18. a4 {[%emt 0:00:15]} bxa4 {[%emt 0:00:50]} 19. Nxa4 {[%emt 0:00:09]} Rxc1 {[%emt 0:03:35]} 20. Rxc1 {[%emt 0:00:08]} Rc8 {[%emt 0:00:08]} 21. Rxc8+ {[%emt 0:03:55]} Bxc8 {[%emt 0:00:10]} 22. Qc2 {[%emt 0:00:12]} Bb7 {[%emt 0:00:19]} 23. Nc5 {[%emt 0:00:09]} Qb6 {[%emt 0:00:51]} 24. Nxb7 {[%emt 0:00:35]} Qxb7 {[%emt 0:00:03]} 25. Qa4 {[%emt 0:00:11]} Nb8 {[%emt 0:00:27]} 26. Ne5 {[%emt 0:00:21]} Qc8 {[%emt 0:02:47]} 27. g3 {[%emt 0:02:35]} Qb7 {[%emt 0:04:42]} 28. Kg2 {[%emt 0:02:50]} Qc8 {[%emt 0:03:06]} 29. h3 {[%emt 0:14:23]} Qb7 {[%emt 0:02:00]} 30. b5 {[%emt 0:00:44]} axb5 {[%emt 0:01:10]} 31. Bxb5 {[%emt 0:00:07]} Qc7 {[%emt 0:00:51]} 32. Be8 {[%emt 0:03:17]} Nxe8 {[%emt 0:02:17]} 33. Qxe8+ {[%emt 0:00:07]} Kh7 {[%emt 0:00:09]} 34. Nxf7 Qd7 35. Qh8+ Kg6 36. Ne5+ {Kh7 Nf7+ Qc7 Qe8 Qd7 Qh8+ Kg6 Ne5+ Qc7 Qf8+ Kh7 Nf7 Qb6 Qh8+ Kg6 Ne5+} Kf6 1-0

[Event "Karnataka State Open-ch 2018"]
[Site "Bengaluru"]
[Date "2018.04.15"]
[Round "4"]
[White "Isha, Sharma"]
[Black "Nirupam, Gogoi"]
[Result "1-0"]
[ECO "B12"]
[WhiteElo "1926"]
[BlackElo "1334"]
[Annotator "NA"]
[PlyCount "65"]
[EventDate "2018.??.??"]
[EventType "swiss"]
[EventCountry "IND"]
[SourceTitle "playchess.com"]
[Source "ChessBase"]
[SourceQuality "1"]
[TimeControl "5400+30"]

1. e4 {[%emt 0:00:00]} c6 {[%emt 0:00:09]} 2. d4 {[%emt 0:00:00]} d5 {[%emt 0:00:08]} 3. e5 {[%emt 0:00:13]} Bf5 {[%emt 0:00:19]} 4. h4 {[%emt 0:00:14]} h5 {[%emt 0:01:50]} 5. Bd3 {[%emt 0:00:21]} Bxd3 {[%emt 0:01:20]} 6. Qxd3 {[%emt 0:00:06]} e6 {[%emt 0:00:29]} 7. Nf3 {[%emt 0:00:25]} a6 {[%emt 0:01:26]} 8. a4 {[%emt 0:01:16]} c5 {[%emt 0:00:30]} 9. Bg5 {[%emt 0:03:08]} Be7 {[%emt 0:01:07]} 10. O-O {[%emt 0:00:53]} c4 {[%emt 0:00:39]} 11. Qe3 {[%emt 0:00:42]} Nc6 {[%emt 0:01:03]} 12. Nc3 {[%emt 0:01:56]} Qd7 {[%emt 0:04:03]} 13. b3 {[%emt 0:12:01]} cxb3 {[%emt 0:06:28]} 14. cxb3 {[%emt 0:00:05]} Nh6 {[%emt 0:03:58]} 15. Ne2 {[%emt 0:02:12]} Nf5 {[%emt 0:03:42]} 16. Qf4 {[%emt 0:02:47]} f6 {[%emt 0:04:42]} 17. exf6 {[%emt 0:13:00]} gxf6 {[%emt 0:01:48]} 18. Ng3 {[%emt 0:01:20]} fxg5 {[%emt 0:02:25]} 19. Nxg5 {[%emt 0:00:07]} Ncxd4 {[%emt 0:05:04]} 20. Qe5 {[%emt 0:01:00]} Rh6 {[%emt 0:03:39]} 21. Nxf5 {[%emt 0:01:22]} Nxf5 {[%emt 0:10:55]} 22. Rae1 {[%emt 0:04:44]} Bf6 {[%emt 0:05:02]} 23. Qxf5 {[%emt 0:00:37]} e5 {[%emt 0:02:42]} 24. Ne6 {[%emt 0:05:26]} Kf7 {[%emt 0:05:13]} 25. Rxe5 {[%emt 0:00:24]} Kg8 {[%emt 0:03:07]} 26. Rxd5 {[%emt 0:00:44]} Qe7 {[%emt 0:06:33]} 27. Nf4 {[%emt 0:00:49]} Bg7 {[%emt 0:12:23]} 28. Rd7 {[%emt 0:01:26]} Qf8 {[%emt 0:01:04]} 29. Qd5+ {[%emt 0:01:14]} Kh8 {[%emt 0:01:26]} 30. Nxh5 {[%emt 0:01:03]} Bf6 {[%emt 0:03:12]} 31. Rf7 {[%emt 0:01:17]} Qg8 {[%emt 0:01:41]} 32. Nxf6 {[%emt 0:00:11]} Rxf6 {[%emt 0:01:54]} 33. Qh5+ {[%emt 0:00:07]} 1-0

[Event "Karnataka State Open-ch 2018"]
[Site "Bengaluru"]
[Date "2018.04.15"]
[Round "4"]
[White "Reetish, Padhi"]
[Black "Kamatham, Balaji"]
[Result "1/2-1/2"]
[ECO "A01"]
[WhiteElo "1915"]
[BlackElo "1324"]
[Annotator "NA"]
[PlyCount "96"]
[EventDate "2018.??.??"]
[EventType "swiss"]
[EventCountry "IND"]
[SourceTitle "playchess.com"]
[Source "ChessBase"]
[SourceQuality "1"]
[TimeControl "5400+30"]

1. b3 {[%emt 0:00:00]} e5 {[%emt 0:00:30]} 2. Bb2 {[%emt 0:00:00]} d6 {[%emt 0:00:37]} 3. c4 {[%emt 0:01:03]} b6 {[%emt 0:01:10]} 4. g3 {[%emt 0:12:31]} Bb7 {[%emt 0:01:29]} 5. Nf3 {[%emt 0:00:06]} Nd7 {[%emt 0:01:13]} 6. Bg2 {[%emt 0:01:05]} Ngf6 {[%emt 0:02:03]} 7. Nc3 {[%emt 0:01:11]} Be7 {[%emt 0:00:24]} 8. O-O {[%emt 0:01:31]} O-O {[%emt 0:01:29]} 9. Qc2 {[%emt 0:01:24]} h6 {[%emt 0:02:12]} 10. d4 {[%emt 0:08:43]} exd4 {[%emt 0:02:34]} 11. Nxd4 {[%emt 0:00:07]} Bxg2 {[%emt 0:01:06]} 12. Kxg2 {[%emt 0:00:06]} Ne5 {[%emt 0:00:28]} 13. e4 {[%emt 0:01:40]} Qd7 {[%emt 0:05:32]} 14. f4 {[%emt 0:05:00]} Ng6 {[%emt 0:07:26]} 15. Nf5 {[%emt 0:02:40]} Rfe8 {[%emt 0:04:45]} 16. Nd5 {[%emt 0:14:18]} Nxd5 {[%emt 0:05:44]} 17. exd5 {[%emt 0:00:34]} Bf8 {[%emt 0:03:11]} 18. Rfe1 {[%emt 0:00:58]} Rxe1 {[%emt 0:03:19]} 19. Rxe1 {[%emt 0:00:07]} Re8 {[%emt 0:00:12]} 20. Rxe8 {[%emt 0:03:34]} Qxe8 {[%emt 0:00:09]} 21. Kf2 {[%emt 0:00:49]} Qd7 {[%emt 0:01:14]} 22. Qe4 {[%emt 0:02:25]} Ne7 {[%emt 0:02:42]} 23. Nd4 {[%emt 0:01:01]} Qh3 {[%emt 0:02:19]} 24. Qg2 {[%emt 0:04:13]} Qd7 {[%emt 0:02:01]} 25. Ke2 {[%emt 0:05:12]} g6 {[%emt 0:03:25]} 26. Kd3 {[%emt 0:04:05]} Bg7 {[%emt 0:03:35]} 27. Qe4 {[%emt 0:02:52]} Kf8 {[%emt 0:02:21]} 28. Bc3 {[%emt 0:02:06]} a6 {[%emt 0:01:13]} 29. Nf3 {[%emt 0:06:26]} a5 {[%emt 0:05:58]} 30. Bxg7+ {[%emt 0:02:27]} Kxg7 {[%emt 0:00:13]} 31. Nd4 {[%emt 0:01:26]} Kf8 {[%emt 0:01:19]} 32. a3 {[%emt 0:03:17]} Qg4 {[%emt 0:01:13]} 33. Qe2 {[%emt 0:02:44]} Qd7 {[%emt 0:00:42]} 34. g4 {[%emt 0:05:11]} Ng8 {[%emt 0:05:52]} 35. f5 {[%emt 0:03:06]} Ne7 {[%emt 0:04:56]} 36. Qe3 {[%emt 0:00:59]} Kg7 {[%emt 0:01:21]} 37. Qf4 {[%emt 0:00:58]} gxf5 {[%emt 0:02:12]} 38. gxf5 {[%emt 0:00:18]} Ng8 {[%emt 0:01:05]} 39. Qg4+ {[%emt 0:00:58]} Kf8 {[%emt 0:00:39]} 40. Qf4 {[%emt 0:01:13]} Qe7 {[%emt 0:00:33]} 41. Nc6 {[%emt 0:01:19]} Qf6 {[%emt 0:00:07]} 42. Nb8 {[%emt 0:00:39]} Qb2 {[%emt 0:01:45]} 43. f6 {[%emt 0:00:29]} Qxb3+ {[%emt 0:00:40]} 44. Kd2 {[%emt 0:00:09]} Qb2+ {[%emt 0:00:16]} 45. Kd1 {[%emt 0:00:11]} Qb1+ {[%emt 0:00:59]} 46. Kd2 {[%emt 0:00:07]} Qb2+ {[%emt 0:00:14]} 47. Kd1 {[%emt 0:00:02]} Qb1+ {[%emt 0:03:46]} 48. Kd2 {[%emt 0:00:05]} Qb2+ {[%emt 0:00:17]} 1/2-1/2

[Event "Karnataka State Open-ch 2018"]
[Site "Bengaluru"]
[Date "2018.04.15"]
[Round "4"]
[White "Raghavendra, V."]
[Black "Yatish, B."]
[Result "1-0"]
[ECO "C00"]
[WhiteElo "1898"]
[BlackElo "1323"]
[Annotator "NA"]
[PlyCount "41"]
[EventDate "2018.??.??"]
[EventType "swiss"]
[EventCountry "IND"]
[SourceTitle "playchess.com"]
[Source "ChessBase"]
[SourceQuality "1"]
[TimeControl "5400+30"]

1. e4 {[%emt 0:00:00]} e6 {[%emt 0:00:07]} 2. b3 {[%emt 0:00:00]} d5 {[%emt 0:00:36]} 3. Bb2 {[%emt 0:00:00]} Nf6 {[%emt 0:01:25]} 4. e5 {[%emt 0:00:00]} Nfd7 {[%emt 0:01:14]} 5. c4 {[%emt 0:00:00]} c6 {[%emt 0:05:12]} 6. Nf3 {[%emt 0:00:13]} Be7 {[%emt 0:01:12]} 7. d4 {[%emt 0:01:06]} O-O {[%emt 0:02:01]} 8. Bd3 {[%emt 0:00:11]} Na6 {[%emt 0:03:25]} 9. O-O {[%emt 0:00:40]} f5 {[%emt 0:01:36]} 10. exf6 {[%emt 0:02:16]} Bxf6 {[%emt 0:02:44]} 11. Nc3 {[%emt 0:01:42]} Nc7 {[%emt 0:01:35]} 12. Qc2 {[%emt 0:08:34]} h6 {[%emt 0:01:38]} 13. Rad1 {[%emt 0:01:11]} c5 {[%emt 0:11:06]} 14. cxd5 {[%emt 0:02:24]} cxd4 {[%emt 0:04:40]} 15. Nxd4 {[%emt 0:03:25]} Ne5 {[%emt 0:06:35]} 16. Bh7+ {[%emt 0:04:11]} Kh8 {[%emt 0:00:40]} 17. dxe6 {[%emt 0:00:49]} Qe7 {[%emt 0:02:47]} 18. Ncb5 {[%emt 0:04:26]} Nxb5 {[%emt 0:03:36]} 19. Nxb5 {[%emt 0:00:02]} Bxe6 {[%emt 0:02:06]} 20. Ba3 {[%emt 0:00:35]} Rfc8 {[%emt 0:03:24]} 21. Bxe7 {[%emt 0:00:26]} 1-0

[Event "Karnataka State Open-ch 2018"]
[Site "Bengaluru"]
[Date "2018.04.15"]
[Round "4"]
[White "Arun Kumar P"]
[Black "Manjunath, J."]
[Result "0-1"]
[ECO "B50"]
[WhiteElo "1545"]
[BlackElo "1986"]
[Annotator "NA"]
[PlyCount "60"]
[EventDate "2018.??.??"]
[EventType "swiss"]
[EventCountry "IND"]
[SourceTitle "playchess.com"]
[Source "ChessBase"]
[SourceQuality "1"]
[TimeControl "5400+30"]

1. e4 {[%emt 0:00:00]} c5 {[%emt 0:06:16]} 2. Nf3 {[%emt 0:00:00]} d6 {[%emt 0:00:06]} 3. c3 {[%emt 0:00:28]} Nf6 {[%emt 0:00:29]} 4. Bb5+ {[%emt 0:00:28]} Nc6 {[%emt 0:00:25]} 5. d3 {[%emt 0:00:07]} Bd7 {[%emt 0:01:10]} 6. Bxc6 {[%emt 0:00:06]} Bxc6 {[%emt 0:00:43]} 7. Bg5 {[%emt 0:00:50]} e6 {[%emt 0:00:13]} 8. Nbd2 {[%emt 0:02:54]} Be7 {[%emt 0:00:24]} 9. a4 {[%emt 0:08:05]} O-O {[%emt 0:00:18]} 10. O-O {[%emt 0:03:39]} h6 {[%emt 0:03:32]} 11. Bh4 {[%emt 0:01:03]} Qc7 {[%emt 0:07:32]} 12. h3 {[%emt 0:00:31]} Nh5 {[%emt 0:05:02]} 13. Bxe7 {[%emt 0:02:44]} Qxe7 {[%emt 0:00:21]} 14. Ne5 {[%emt 0:01:44]} dxe5 {[%emt 0:03:31]} 15. Qxh5 {[%emt 0:00:13]} f6 {[%emt 0:00:32]} 16. f4 {[%emt 0:05:17]} exf4 {[%emt 0:00:32]} 17. Rxf4 {[%emt 0:00:08]} Rad8 {[%emt 0:00:11]} 18. Qe2 {[%emt 0:00:14]} Qd7 {[%emt 0:00:24]} 19. Rf3 {[%emt 0:01:47]} Bxa4 {[%emt 0:00:41]} 20. b3 {[%emt 0:00:38]} Bc6 {[%emt 0:00:45]} 21. Rxa7 {[%emt 0:00:22]} Bb5 {[%emt 0:00:16]} 22. Ra2 {[%emt 0:06:11]} Bxd3 {[%emt 0:03:21]} 23. Qe3 {[%emt 0:00:03]} Qc7 {[%emt 0:07:54]} 24. Rg3 {[%emt 0:03:56]} Bb5 {[%emt 0:00:51]} 25. c4 {[%emt 0:00:21]} Bc6 {[%emt 0:00:21]} 26. Rg4 {[%emt 0:00:03]} f5 {[%emt 0:01:18]} 27. exf5 {[%emt 0:01:29]} exf5 {[%emt 0:00:08]} 28. Qe6+ {[%emt 0:08:29]} Kh8 {[%emt 0:00:58]} 29. Rh4 {[%emt 0:00:14]} Qg3 {[%emt 0:01:38]} 30. Nf3 {[%emt 0:04:23]} Rd1+ {[%emt 0:00:21]} 0-1

[Event "Karnataka State Open-ch 2018"]
[Site "Bengaluru"]
[Date "2018.04.15"]
[Round "4"]
[White "Gajanan D"]
[Black "Kulkarni, Vinayak"]
[Result "0-1"]
[ECO "A46"]
[WhiteElo "1538"]
[BlackElo "2179"]
[Annotator "RC"]
[PlyCount "90"]
[EventDate "2018.??.??"]
[EventType "swiss"]
[EventCountry "IND"]
[SourceTitle "playchess.com"]
[Source "ChessBase"]
[SourceQuality "1"]
[TimeControl "5400+30"]

1. d4 {[%emt 0:00:00]} Nf6 {[%emt 0:00:19]} 2. Nf3 {[%emt 0:00:00]} c5 {[%emt 0:00:59]} 3. e3 {[%emt 0:00:00]} g6 {[%emt 0:01:05]} 4. Be2 {[%emt 0:01:57]} Bg7 {[%emt 0:01:20]} 5. O-O {[%emt 0:04:40]} O-O {[%emt 0:01:05]} 6. b3 {[%emt 0:01:06]} cxd4 {[%emt 0:01:36]} 7. exd4 {[%emt 0:00:04]} d5 {[%emt 0:00:46]} 8. Bb2 Nc6 {[%emt 0:01:37]} 9. a3 {[%emt 0:04:10]} Be6 {[%emt 0:09:51]} 10. b4 {[%emt 0:04:29]} Rc8 {[%emt 0:01:52]} 11. Nbd2 {[%emt 0:01:33]} Ne4 {[%emt 0:01:41]} 12. Nb3 {[%emt 0:06:27]} Nd6 {[%emt 0:08:00]} 13. Bd3 {[%emt 0:19:55]} Bf5 {[%emt 0:08:34]} 14. Bc1 {[%emt 0:11:43]} Be4 {[%emt 0:05:27]} 15. Be3 {[%emt 0:06:17]} Nf5 {[%emt 0:05:03]} 16. Qd2 {[%emt 0:05:39]} Nd6 {[%emt 0:11:27]} 17. Ng5 {[%emt 0:05:04]} Bxd3 {[%emt 0:01:42]} 18. cxd3 {[%emt 0:00:42]} Nf5 {[%emt 0:04:13]} 19. Nf3 {[%emt 0:00:51]} b6 {[%emt 0:02:24]} 20. Rac1 {[%emt 0:01:24]} e5 {[%emt 0:02:28]} 21. b5 {[%emt 0:03:20]} Ncxd4 {[%emt 0:01:05]} 22. Bxd4 {[%emt 0:04:26]} exd4 {[%emt 0:00:56]} 23. Rxc8 {[%emt 0:00:32]} Qxc8 {[%emt 0:00:08]} 24. Qb4 {[%emt 0:00:27]} Qc3 {[%emt 0:01:50]} 25. g4 {[%emt 0:03:22]} Nh6 {[%emt 0:04:42]} 26. Nbxd4 {[%emt 0:00:54]} Qxd3 {[%emt 0:01:34]} 27. h3 Bxd4 28. Nxd4 {[%emt 0:00:19]} Qxh3 {[%emt 0:03:09]} 29. f3 {[%emt 0:00:08]} Qg3+ {[%emt 0:01:55]} 30. Kh1 {[%emt 0:00:12]} Re8 {[%emt 0:00:44]} 31. Qd2 {[%emt 0:01:30]} Qh3+ {[%emt 0:04:05]} 32. Kg1 {[%emt 0:00:08]} f5 {[%emt 0:00:35]} 33. Nc6 {[%emt 0:07:11]} fxg4 {[%emt 0:01:42]} 34. Qxd5+ {[%emt 0:00:23]} Nf7 {[%emt 0:00:23]} 35. fxg4 {[%emt 0:02:36]} Qxg4+ {[%emt 0:00:23]} 36. Kh1 {[%emt 0:00:51]} Qh4+ {[%emt 0:02:26]} 37. Kg1 {[%emt 0:00:21]} Qg5+ {[%emt 0:00:16]} 38. Qxg5 {[%emt 0:00:57]} Nxg5 {[%emt 0:00:05]} 39. Rd1 {[%emt 0:00:35]} Nf3+ {[%emt 0:02:19]} 40. Kf2 {[%emt 0:00:09]} Ne5 {[%emt 0:00:32]} 41. Nxe5 {[%emt 0:00:45]} Rxe5 {[%emt 0:00:08]} 42. Rd7 {[%emt 0:00:03]} Rxb5 {[%emt 0:00:42]} 43. Rxa7 {[%emt 0:00:11]} Ra5 {[%emt 0:00:24]} 44. Rb7 {[%emt 0:00:45]} Rxa3 {[%emt 0:00:20]} 45. Rxb6 {[%emt 0:00:05]} Kg7 0-1

[Event "Karnataka State Open-ch 2018"]
[Site "Bengaluru"]
[Date "2018.04.15"]
[Round "4"]
[White "Shivanth M"]
[Black "Hegde, Ravi Gopal"]
[Result "0-1"]
[ECO "B09"]
[WhiteElo "1527"]
[BlackElo "2139"]
[Annotator "NA"]
[PlyCount "86"]
[EventDate "2018.??.??"]
[EventType "swiss"]
[EventCountry "IND"]
[SourceTitle "playchess.com"]
[Source "ChessBase"]
[SourceQuality "1"]
[TimeControl "5400+30"]

1. e4 {[%emt 0:00:00]} g6 {[%emt 0:00:27]} 2. d4 {[%emt 0:00:06]} Bg7 {[%emt 0:00:08]} 3. Nc3 {[%emt 0:00:07]} d6 {[%emt 0:00:43]} 4. f4 {[%emt 0:00:11]} Nf6 {[%emt 0:01:16]} 5. Nf3 {[%emt 0:00:27]} O-O {[%emt 0:00:15]} 6. Be3 {[%emt 0:01:23]} b6 {[%emt 0:00:08]} 7. Bd3 {[%emt 0:03:06]} Bb7 {[%emt 0:00:22]} 8. Qd2 {[%emt 0:00:41]} c5 {[%emt 0:00:06]} 9. e5 {[%emt 0:03:52]} Ng4 {[%emt 0:01:29]} 10. O-O {[%emt 0:11:32]} cxd4 {[%emt 0:00:43]} 11. Bxd4 {[%emt 0:00:20]} Nc6 {[%emt 0:01:18]} 12. Be4 {[%emt 0:05:04]} dxe5 {[%emt 0:00:16]} 13. Bxc6 {[%emt 0:01:54]} Bxc6 {[%emt 0:00:09]} 14. Nxe5 {[%emt 0:01:45]} Nxe5 {[%emt 0:00:26]} 15. fxe5 {[%emt 0:00:06]} Bxe5 {[%emt 0:00:16]} 16. Rad1 {[%emt 0:00:08]} Bxd4+ {[%emt 0:00:23]} 17. Qxd4 {[%emt 0:00:08]} Qxd4+ {[%emt 0:00:05]} 18. Rxd4 {[%emt 0:00:07]} Rfd8 {[%emt 0:00:27]} 19. Rfd1 {[%emt 0:00:59]} Rxd4 {[%emt 0:00:17]} 20. Rxd4 {[%emt 0:00:09]} Kf8 {[%emt 0:00:48]} 21. Rc4 {[%emt 0:02:44]} Bd7 {[%emt 0:00:14]} 22. Rc7 {[%emt 0:02:53]} Ke8 {[%emt 0:00:08]} 23. Nd5 {[%emt 0:01:58]} Kd8 {[%emt 0:00:19]} 24. Rc3 {[%emt 0:00:10]} Rc8 {[%emt 0:00:17]} 25. Rxc8+ {[%emt 0:07:13]} Bxc8 {[%emt 0:01:50]} 26. Ne3 {[%emt 0:00:21]} Kc7 {[%emt 0:00:28]} 27. c3 {[%emt 0:01:52]} e5 {[%emt 0:00:22]} 28. g4 {[%emt 0:00:33]} Be6 {[%emt 0:00:12]} 29. a3 {[%emt 0:00:25]} f5 {[%emt 0:00:05]} 30. gxf5 {[%emt 0:01:11]} gxf5 {[%emt 0:00:08]} 31. Kf2 {[%emt 0:00:32]} Kd6 {[%emt 0:00:20]} 32. Kf3 {[%emt 0:00:52]} f4 {[%emt 0:00:55]} 33. Nd1 {[%emt 0:00:45]} Bd5+ {[%emt 0:00:15]} 34. Kg4 {[%emt 0:00:20]} Be6+ {[%emt 0:00:42]} 35. Kf3 {[%emt 0:00:22]} Bf5 {[%emt 0:00:18]} 36. Nf2 {[%emt 0:00:10]} Kd5 {[%emt 0:00:06]} 37. b3 {[%emt 0:01:49]} a5 {[%emt 0:00:21]} 38. h4 {[%emt 0:00:35]} h5 {[%emt 0:00:10]} 39. b4 {[%emt 0:00:16]} Kc4 {[%emt 0:00:19]} 40. Ne4 {[%emt 0:00:35]} Bxe4+ {[%emt 0:00:12]} 41. Kxe4 {[%emt 0:00:02]} Kxc3 {[%emt 0:00:08]} 42. b5 {[%emt 0:00:08]} Kc4 {[%emt 0:00:07]} 43. a4 {[%emt 0:00:04]} Kc5 {[%emt 0:00:13]} 0-1

[Event "Karnataka State Open-ch 2018"]
[Site "Bengaluru"]
[Date "2018.04.15"]
[Round "4"]
[White "Kalki Eshwar D"]
[Black "Gavi, Siddayya"]
[Result "1-0"]
[ECO "C24"]
[WhiteElo "1515"]
[BlackElo "1993"]
[Annotator "NA"]
[PlyCount "89"]
[EventDate "2018.??.??"]
[EventType "swiss"]
[EventCountry "IND"]
[SourceTitle "playchess.com"]
[Source "ChessBase"]
[SourceQuality "1"]
[TimeControl "5400+30"]

1. e4 {[%emt 0:00:00]} e5 {[%emt 0:00:08]} 2. Bc4 {[%emt 0:00:00]} Nf6 {[%emt 0:00:09]} 3. d3 {[%emt 0:00:00]} c6 {[%emt 0:00:12]} 4. Nf3 {[%emt 0:00:02]} Be7 {[%emt 0:00:19]} 5. O-O {[%emt 0:00:21]} d6 {[%emt 0:00:10]} 6. a3 {[%emt 0:01:02] C24: Bishop's Opening: 2...Nf6} (6. c3 O-O 7. Bb3 Nbd7 8. Nbd2 d5 9. exd5 cxd5 10. Re1 Bd6 11. Nf1 h6 12. Ng3 Re8 13. d4 e4 14. Nh4 Nf8 15. Nhf5 {½-½ (67) Wang,H (2702)-Kuzubov,Y (2652) Tbilisi 2017}) 6... O-O {[%emt 0:00:33]} 7. Re1 {[%emt 0:00:11]} Nbd7 {[%emt 0:03:32]} 8. h3 $146 {[%emt 0:00:16]} ({Predecessor:} 8. Nbd2 Nc5 9. Nf1 Re8 10. Ng3 Bf8 11. Ba2 Be6 12. b4 Bxa2 13. Rxa2 Ne6 {1-0 (52) Nevednichy,V (2524)-Firat,B (2480) Izmir 2017}) 8... b5 {[%emt 0:01:08]} 9. Ba2 {[%emt 0:00:03]} a5 {[%emt 0:00:30]} 10. c3 {[%emt 0:00:51]} Qc7 {[%emt 0:00:33]} 11. Nbd2 {[%emt 0:01:04]} Nc5 {[%emt 0:00:54]} 12. Nf1 {[%emt 0:00:23]} Be6 {[%emt 0:00:40]} 13. Ng3 {[%emt 0:00:38]} Bxa2 {[%emt 0:03:28]} 14. Rxa2 {[%emt 0:00:29]} a4 {[%emt 0:00:34]} 15. d4 {[%emt 0:04:01]} Ne6 {[%emt 0:00:27]} 16. Ra1 {[%emt 0:00:50]} g6 {[%emt 0:00:44]} 17. Be3 {[%emt 0:02:18]} c5 {[%emt 0:03:59]} 18. Qe2 {[%emt 0:03:59]} Rfb8 {[%emt 0:01:54]} 19. Rac1 {[%emt 0:02:20]} Bf8 {[%emt 0:02:17]} 20. d5 {[%emt 0:01:08]} Ng7 {[%emt 0:03:55]} 21. Bg5 {[%emt 0:01:46]} Nd7 {[%emt 0:01:18]} 22. h4 {[%emt 0:00:53]} Ne8 {[%emt 0:05:20]} 23. h5 {[%emt 0:01:23]} h6 {[%emt 0:01:06]} 24. hxg6 {[%emt 0:00:31]} fxg6 {[%emt 0:00:17]} 25. Bd2 {[%emt 0:00:53]} Ndf6 {[%emt 0:01:01]} 26. Nh2 {[%emt 0:02:02]} Qh7 {[%emt 0:03:53]} 27. Rcd1 {[%emt 0:05:56]} Ra7 {[%emt 0:04:19]} 28. f4 {[%emt 0:00:35]} exf4 {[%emt 0:01:28]} 29. Bxf4 {[%emt 0:00:15]} g5 {[%emt 0:00:17]} 30. Bc1 {[%emt 0:01:35]} Re7 {[%emt 0:00:26]} 31. Qf2 {[%emt 0:07:06]} Nxe4 {[%emt 0:04:17]} 32. Rxe4 {[%emt 0:00:08]} Rxe4 {[%emt 0:00:11]} 33. Rf1 {[%emt 0:00:26]} Be7 {[%emt 0:03:46]} 34. Nxe4 {[%emt 0:00:16]} Qxe4 {[%emt 0:00:15]} 35. Qf7+ {[%emt 0:00:10]} Kh8 {[%emt 0:00:27]} 36. Ng4 {[%emt 0:00:55]} Ng7 $1 {[%emt 0:04:31]} 37. Nf6 {[%emt 0:00:58]} Bxf6 $1 {[%emt 0:03:52]} 38. Qxf6 {[%emt 0:01:14]} Qxd5 $2 {[%emt 0:02:32]} (38... Kh7 $11 {and Black stays safe.}) 39. Qxh6+ {[%emt 0:00:06]} Kg8 {[%emt 0:00:05]} 40. Bxg5 {[%emt 0:00:16]} Rf8 $2 {[%emt 0:04:55]} (40... Qe4 41. Qxd6 Re8 42. Qxc5 Qe5 43. Qxe5 Rxe5) 41. Rxf8+ $2 {[%emt 0:03:53]} (41. Bf6 $18 {[%csl Gf6][%cal Rh6g7]} Rf7 42. Rf3) 41... Kxf8 {[%emt 0:00:02] [#]} 42. Bf6 $1 {[%emt 0:00:20]} Qd1+ $2 {[%emt 0:00:24]} (42... Qg8 43. c4 bxc4) 43. Kf2 {[%emt 0:00:08]} Qc2+ {[%emt 0:00:42]} 44. Kg3 {[%emt 0:00:38]} Qd3+ $18 {[%emt 0:03:38]} 45. Kh2 {[%emt 0:00:11]} 1-0